bitfinex/quotes_ETHUSD_20250114
["timestamp","ask_amount","ask_price","bid_price","bid_amount"]
[1736870940451,0.39240361,3194.1,3193.2,0.245]
[1736870940656,0.03035383,3194.0,3193.2,0.245]
[1736870940897,0.7633,3194.2,3193.3,0.55]
[1736870941086,0.7633,3194.2,3193.7,3.13113]
[1736870941290,0.7633,3194.2,3193.8,3.13105]
[1736870941622,0.03042581,3194.1,3193.6,3.13126]
[1736870941766,0.03042581,3194.1,3193.9,3.0]
[1736870941976,0.7633,3194.2,3193.7,0.55]
[1736870942292,0.1675531,3195.1,3193.5,3.0]
[1736870942293,0.7929,3195.0,3193.5,0.7559]
[1736870942504,3.13,3194.9,3193.9,3.0]
[1736870942712,3.13,3194.9,3193.3,4.41089004]
[1736870942713,0.7929,3194.2,3193.2,3.13164]
[1736870942858,3.92361,3194.2,3193.2,3.13164]
[1736870943205,3.1317,3193.2,3191.8,4.387444]
[1736870943362,1.10607,3193.1,3192.0,3.13278]
[1736870943665,3.13194,3192.9,3191.8,3.13302]
[1736870943867,0.02851386,3192.8,3191.9,3.13292]
[1736870944064,0.02851386,3192.8,3192.0,3.0]
[1736870944265,0.02851386,3192.8,3191.5,3.13332]
[1736870944266,3.13196,3192.9,3191.6,3.0]
[1736870944466,3.13196,3192.9,3191.5,3.13332]
[1736870944467,0.02795014,3192.8,3191.5,3.13332]
[1736870944810,3.13083,3194.1,3193.0,3.13182]
[1736870945094,3.92379,3194.0,3192.6,3.0]
[1736870945292,3.95289469,3194.0,3192.3,0.7559]
[1736870946072,0.7929,3193.9,3191.9,2.7559]
[1736870946275,0.82054431,3193.8,3191.9,2.7559]
[1736870947113,0.7929,3193.8,3191.9,2.7559]
[1736870947316,0.7929,3193.8,3193.0,3.1318]
[1736870947487,0.7929,3193.5,3192.0,3.243]
[1736870947689,0.7929,3193.5,3192.1,0.55]
[1736870947892,0.7929,3193.5,3192.3,3.0]
[1736870948226,0.7929,3193.5,3192.8,3.13203]
[1736870948391,0.02747012,3193.4,3192.9,3.13192]
[1736870948590,0.02747012,3193.4,3192.8,3.0]
[1736870948977,0.7929,3193.5,3192.8,3.0]
[1736870949204,0.7929,3193.5,3192.2,3.55]
[1736870949523,0.7929,3193.5,3192.8,3.13196]
[1736870949727,0.7929,3193.5,3192.2,3.55]
[1736870949927,0.7929,3193.4,3192.4,3.13241]
[1736870950110,1.185334,3193.4,3192.4,3.13241]
[1736870950435,1.185334,3193.4,3192.6,3.13216]
[1736870950636,0.7929,3193.4,3192.6,3.13216]
[1736870950995,0.7929,3193.4,3192.8,3.0]
[1736870951185,0.7929,3193.4,3192.4,3.0]
[1736870951514,0.03914518,3194.0,3192.4,3.0]
[1736870951515,3.92451,3193.3,3192.8,0.05]
[1736870951828,0.7929,3193.3,3192.8,0.05]
[1736870951985,0.7929,3193.3,3193.2,3.13165]
[1736870952189,0.7929,3194.2,3193.3,6.13153]
[1736870952387,3.13108,3193.8,3192.8,0.05]
[1736870952696,3.16994833,3194.1,3192.8,0.05]
[1736870952888,0.7929,3193.9,3192.8,0.05]
[1736870953095,0.7929,3193.9,3193.1,3.13168]
[1736870953399,0.7929,3193.9,3193.1,3.13175]
[1736870953592,0.7929,3193.9,3193.0,3.0]
[1736870953788,0.7929,3193.9,3193.2,3.0]
[1736870954188,0.7929,3193.9,3193.0,3.0]
[1736870954404,4.316249,3193.9,3193.0,3.13184]
[1736870954606,1.185279,3193.9,3193.2,3.0]
[1736870955092,0.7929,3193.8,3193.0,3.0]
[1736870955287,3.92398,3193.8,3193.0,3.0]
[1736870955732,0.7929,3193.8,3193.0,3.0]
[1736870956114,0.7929,3193.8,3193.0,3.13175]
[1736870956314,0.7929,3193.8,3193.0,3.0]
[1736870956514,0.7929,3193.8,3193.2,3.1316]
[1736870956831,0.7929,3193.8,3193.3,3.13155]
[1736870957015,0.7929,3193.8,3192.8,3.05]
[1736870957332,0.8089,3193.6,3192.8,0.05]
[1736870957502,3.13139,3193.5,3192.8,0.05]
[1736870957704,0.8089,3193.3,3192.8,0.05]
[1736870957898,3.13194,3192.9,3192.8,0.05]
[1736870958231,3.94084,3192.9,3192.8,0.05]
[1736870958596,0.8089,3192.4,3191.2,4.00991239]
[1736870958833,3.56591029,3192.3,3191.2,3.13354]
[1736870958994,0.8089,3192.2,3191.3,6.13349]
[1736870959329,0.8089,3192.2,3192.1,3.13273]
[1736870959527,0.8089,3192.7,3192.4,3.1324]
[1736870959748,0.8089,3192.7,3192.3,3.13252]
[1736870960043,0.8089,3192.7,3191.1,0.7633]
[1736870960195,0.8089,3192.5,3191.1,5.17419004]
[1736870960403,0.8089,3192.5,3191.5,4.41089004]
[1736870960601,0.8089,3192.5,3191.5,3.1333]
[1736870960829,0.8089,3192.5,3191.1,4.41089004]
[1736870961002,0.8089,3192.5,3191.2,3.0]
[1736870961203,0.8089,3192.5,3192.1,3.13272]
[1736870961505,0.03915647,3192.9,3191.9,3.0]
[1736870961839,0.8089,3192.8,3191.6,3.13321]
[1736870962232,0.8089,3192.8,3191.9,3.13283]
[1736870962430,0.8089,3192.8,3191.1,0.7633]
[1736870962642,0.8089,3192.5,3191.1,3.0]
[1736870962830,0.8089,3192.5,3191.7,3.13303]
[1736870963222,1.203008,3192.5,3191.8,3.13302]
[1736870963539,0.8089,3192.5,3191.4,0.55]
[1736870963943,0.8089,3192.5,3192.1,3.13273]
[1736870964196,0.8089,3192.5,3191.6,3.13322]
[1736870964454,0.8089,3192.5,3192.2,3.13253]
[1736870964859,3.94127,3192.5,3191.5,3.13324]
[1736870965172,0.394127,3192.4,3191.6,3.13319]
[1736870965327,0.394127,3192.4,3191.1,0.32634196]
[1736870965505,4.41089004,3193.3,3191.1,0.32634196]
[1736870965506,0.84806227,3192.3,3191.3,3.13343]
[1736870965702,0.84806227,3192.3,3191.5,3.0]
[1736870965703,0.8089,3192.3,3191.5,3.0]
[1736870965902,0.8089,3192.3,3191.1,0.32634196]
[1736870966208,0.8089,3192.0,3190.9,6.13382]
[1736870966406,0.8089,3192.0,3190.6,0.63206507]
[1736870966407,0.03916305,3191.9,3190.6,0.63206507]
[1736870966607,0.8089,3192.0,3191.5,3.13328]
[1736870966839,0.8089,3192.0,3191.0,3.0]
[1736870967046,0.8089,3192.0,3191.1,3.89701]
[1736870967209,0.8089,3192.0,3191.7,3.13308]
[1736870967407,0.8089,3192.0,3191.8,3.0]
[1736870967638,0.8089,3192.0,3191.8,3.13301]
[1736870968261,0.8089,3192.0,3191.7,3.0]
[1736870968426,0.8089,3192.0,3191.0,3.0]
[1736870968624,0.8089,3192.4,3192.3,3.13253]
[1736870968830,0.8089,3192.4,3191.5,3.0]
[1736870969047,0.8089,3192.4,3191.6,3.13316]
[1736870969570,0.8089,3192.4,3191.2,0.62566473]
[1736870969862,0.8089,3192.4,3191.4,3.0]
[1736870970034,0.8089,3192.4,3192.1,3.13268]
[1736870970231,0.8089,3192.4,3192.2,3.13261]
[1736870970563,0.8089,3192.4,3192.0,3.13278]
[1736870970725,0.8089,3192.4,3192.1,3.13273]
[1736870971073,0.8089,3192.4,3192.1,3.0]
[1736870971214,0.80512909,3192.4,3191.7,3.0]
[1736870971564,3.13147,3193.4,3192.3,3.13245]
[1736870971791,0.55,3193.2,3192.3,3.13244]
[1736870971926,3.1313,3193.6,3191.8,3.0]
[1736870972122,3.37391,3194.0,3192.7,3.13213]
[1736870972375,3.13112,3193.8,3192.4,3.13243]
[1736870972676,3.13069,3194.2,3192.9,3.13185]
[1736870972833,3.13096,3194.0,3192.2,3.0]
[1736870973174,3.13096,3194.0,3192.9,3.13186]
[1736870973175,0.55,3193.9,3192.9,3.13186]
[1736870973322,3.13096,3194.0,3192.9,3.13186]
[1736870973527,3.13098,3193.9,3192.9,3.13186]
[1736870973725,0.55,3193.8,3192.9,3.13186]
[1736870974160,0.8089,3193.7,3192.9,3.13186]
[1736870975066,0.8089,3193.7,3193.1,3.13175]
[1736870975264,0.8089,3193.7,3192.9,3.0]
[1736870975514,0.8089,3193.7,3193.3,3.13153]
[1736870976786,0.8089,3193.7,3193.4,0.29238087]
[1736870977282,0.8089,3193.7,3193.6,3.13126]
[1736870977437,0.63943072,3194.9,3193.4,0.29238087]
[1736870977438,0.8089,3194.6,3193.8,3.13103]
[1736870977644,0.8089,3194.6,3193.5,3.0]
[1736870977877,0.8089,3194.6,3193.7,3.0]
[1736870978083,0.8089,3194.6,3193.7,3.13115]
[1736870978244,0.8089,3194.6,3193.9,0.23381601]
[1736870979083,0.8089,3194.6,3193.9,3.23381601]
[1736870979266,0.8089,3194.6,3194.1,3.13071]
[1736870979574,0.8089,3194.6,3194.1,3.13068]
[1736870979939,0.8089,3194.6,3194.0,0.29238087]
[1736870980139,0.8089,3194.6,3194.3,3.13055]
[1736870980455,0.8089,3194.6,3194.1,3.13074]
[1736870980778,0.8089,3194.6,3194.2,3.13063]
[1736870981571,0.8089,3194.6,3193.8,3.13098]
[1736870981773,0.8089,3194.3,3193.3,0.64114868]
[1736870981936,0.8089,3194.3,3193.0,3.98282616]
[1736870982136,0.8089,3194.3,3193.4,3.98282616]
[1736870982385,0.8089,3194.3,3193.8,3.13104]
[1736870982585,0.8089,3194.3,3193.4,10.11423616]
[1736870982586,0.8089,3194.3,3193.7,3.0]
[1736870982888,0.03913162,3194.2,3193.5,0.29172558]
[1736870983093,0.8089,3194.3,3193.5,0.29172558]
[1736870983294,0.8089,3194.3,3193.5,3.42300558]
[1736870983584,0.8089,3194.3,3193.6,3.0]
[1736870983954,0.8089,3194.3,3193.8,3.0]
[1736870984365,0.8089,3194.3,3193.5,3.98282616]
[1736870984366,0.8089,3194.3,3193.6,6.13122]
[1736870984684,0.8089,3194.3,3193.4,3.1314]
[1736870984837,0.8089,3194.3,3193.1,7.87786616]
[1736870985288,0.8089,3194.3,3193.5,3.0]
[1736870985471,1.202838,3194.3,3193.5,3.0]
[1736870985644,1.202838,3194.3,3192.8,3.98282616]
[1736870985645,0.55,3194.2,3193.3,3.0]
[1736870985840,3.68094,3194.0,3193.0,3.1318]
[1736870986077,0.7936,3193.9,3193.1,3.13174]
[1736870986496,0.55,3193.8,3192.5,3.98282616]
[1736870986650,0.55,3193.6,3192.3,3.13244]
[1736870986883,0.55,3193.6,3192.6,3.13216]
[1736870986884,0.03914622,3193.5,3192.6,3.13216]
[1736870987070,0.55,3193.6,3192.6,3.13216]
[1736870987071,0.7936,3193.4,3192.6,3.13216]
[1736870987283,1.24500462,3193.4,3192.6,3.0]
[1736870987606,1.24500462,3193.4,3192.3,3.61860648]
[1736870987607,3.13174,3193.2,3192.3,3.13248]
[1736870987895,0.55,3193.3,3192.4,3.5056671]
[1736870988250,3.92509,3193.4,3192.5,3.13227]
[1736870988872,0.55,3193.1,3192.4,0.3733171]
[1736870989193,0.7936,3192.7,3192.4,0.3733171]
[1736870989424,0.7936,3192.7,3191.8,0.05]
[1736870989425,0.55,3192.3,3191.8,0.05]
[1736870989568,0.83276499,3192.2,3191.8,0.05]
[1736870989894,0.7936,3192.0,3191.8,0.05]
[1736870990187,3.68293,3191.9,3191.8,0.05]
[1736870990390,4.16974817,3191.9,3191.8,0.05]
[1736870990599,4.9633536,3191.9,3191.8,0.05]
[1736870991669,0.7936,3191.1,3190.3,3.46073339]
[1736870991880,0.7936,3191.1,3190.5,3.1343]
[1736870992747,0.58917419,3191.0,3190.3,0.32626339]
[1736870992968,0.55,3190.8,3190.3,0.32626339]
[1736870993276,0.7936,3190.7,3190.0,3.0]
[1736870993849,0.7936,3190.7,3190.3,3.13443]
[1736870994911,0.7936,3190.7,3190.2,3.1345]
[1736870995308,0.7936,3190.7,3190.0,3.13475]
[1736870995506,0.7936,3191.1,3189.9,3.0]
[1736870995674,3.17301755,3191.0,3189.9,3.13487]
[1736870996102,3.13402,3190.8,3189.8,3.0]
[1736870996299,3.92775,3190.7,3189.8,3.0]
[1736870996514,0.7936,3190.7,3189.6,0.94924335]
[1736870996830,0.7936,3190.7,3189.8,3.0]
[1736870997474,0.7936,3190.7,3189.6,0.32613604]
[1736870997475,0.58918162,3190.6,3189.6,0.32613604]
[1736870997674,0.55,3190.6,3189.6,0.32613604]
[1736870997974,0.7936,3190.7,3189.6,0.32613604]
[1736870998180,0.7936,3190.7,3189.9,3.0]
[1736870998381,0.7936,3190.7,3189.9,3.13489]
[1736870998587,0.7936,3190.7,3189.6,0.32613604]
[1736870998588,0.7936,3190.7,3189.7,3.13504]
[1736870998812,0.7936,3190.7,3189.6,0.32613604]
[1736870998813,0.7936,3190.7,3190.3,3.1344]
[1736870999001,3.13342,3191.4,3190.0,6.13479]
[1736870999002,0.7936,3191.3,3190.0,6.13479]
[1736870999197,3.92712,3191.3,3190.1,35.0]
[1736870999398,3.92712,3191.3,3190.3,6.13447]
[1736870999785,0.7936,3191.3,3190.5,3.13429]
[1736870999980,1.186292,3191.3,3189.9,3.0]
[1736871000185,0.55,3190.9,3189.5,0.7873]
[1736871000394,0.03917876,3190.8,3189.6,0.95350058]
[1736871000596,0.7822,3190.7,3189.5,0.7873]
[1736871000898,0.7822,3190.7,3189.6,0.32616385]
[1736871000899,3.68424,3190.6,3189.6,0.32616385]
[1736871001110,0.55,3190.4,3189.6,0.32616385]
[1736871001302,0.7822,3190.3,3189.6,0.32616385]
[1736871001827,0.58918627,3190.2,3189.6,0.32616385]
[1736871001991,0.7822,3189.8,3188.8,0.61838514]
[1736871002194,0.7822,3189.8,3189.2,0.32611101]
[1736871002615,0.7822,3189.8,3188.7,0.3716115]
[1736871002887,0.7822,3190.4,3189.1,0.8229]
[1736871003121,0.7822,3190.4,3189.1,3.8229]
[1736871003431,0.7822,3190.4,3189.7,3.0]
[1736871003617,3.13341,3191.5,3190.3,3.13441]
[1736871003820,3.13341,3191.5,3189.9,3.8229]
[1736871003821,0.82137436,3191.4,3189.9,3.8229]
[1736871003986,3.13362,3191.2,3190.2,3.13459]
[1736871004446,3.13362,3191.2,3189.9,3.8229]
[1736871004447,0.7822,3191.0,3189.9,3.13487]
[1736871004632,0.7822,3191.0,3189.5,0.8229]
[1736871004818,0.7822,3191.0,3190.2,3.1345]
[1736871005136,0.7822,3191.0,3189.5,0.8229]
[1736871005137,3.13402,3190.8,3189.6,3.0]
[1736871005435,0.7822,3191.0,3189.7,4.40819216]
[1736871005613,0.7822,3191.0,3190.3,3.13443]
[1736871005819,0.7822,3191.0,3189.9,3.0]
[1736871006183,3.13402,3190.8,3189.8,3.13497]
[1736871006389,0.7822,3190.6,3189.3,5.23109216]
[1736871006616,0.7822,3190.6,3189.8,3.13498]
[1736871006836,0.03918175,3190.5,3189.6,3.13514]
[1736871006991,0.7822,3190.6,3189.6,3.13514]
[1736871007192,0.55,3190.4,3189.4,3.13537]
[1736871007530,0.55,3190.5,3189.3,3.0]
[1736871007729,0.7822,3190.6,3189.3,3.0]
[1736871007730,0.7822,3190.6,3189.4,3.0]
[1736871008035,0.7822,3190.6,3189.7,3.0]
[1736871008202,0.7822,3190.6,3189.9,3.0]
[1736871008406,0.7822,3190.6,3189.1,0.63725982]
[1736871008407,0.03917917,3190.5,3189.1,0.63725982]
[1736871008729,0.55,3190.4,3189.5,3.13527]
[1736871009027,0.996654,3190.4,3189.6,3.0]
[1736871009188,0.996654,3190.4,3189.2,3.0]
[1736871009389,0.7822,3190.6,3189.0,3.0]
[1736871009609,0.7822,3190.6,3189.8,3.13489]
[1736871010316,0.7822,3190.6,3189.5,3.13527]
[1736871010518,0.7822,3190.6,3189.3,3.62369709]
[1736871010519,0.7822,3190.6,3189.3,3.75914709]
[1736871010831,3.9164,3190.6,3189.3,3.75914709]
[1736871011004,3.9164,3190.6,3189.5,3.0]
[1736871011005,0.7822,3190.6,3189.5,3.0]
[1736871011204,0.7822,3190.6,3189.8,3.0]
[1736871011637,0.7822,3190.6,3190.3,3.13446]
[1736871011839,0.7822,3190.6,3189.7,3.0]
[1736871012354,0.7822,3190.6,3190.2,3.1345]
[1736871012506,0.7822,3191.5,3190.2,3.8229]
[1736871012850,0.7822,3191.5,3191.3,3.0]
[1736871013144,0.7822,3191.5,3191.4,6.13342]
[1736871013347,0.7822,3192.3,3191.5,3.0]
[1736871013511,4.306208,3192.3,3191.4,3.13342]
[1736871013711,3.13265,3192.2,3191.3,3.0]
[1736871013906,3.13265,3192.2,3191.3,6.1335]
[1736871014111,0.55,3192.2,3191.3,3.1335]
[1736871014355,1.173668,3192.3,3191.1,3.0]
[1736871014556,0.7822,3192.3,3191.1,6.13368]
[1736871014722,0.7822,3192.3,3191.3,3.0]
[1736871015433,0.7822,3192.3,3191.5,3.0]
[1736871015434,3.91475,3192.3,3191.5,3.0]
[1736871015639,0.8538611,3192.2,3191.4,0.23288877]
[1736871015832,0.8147,3191.6,3191.4,0.23288877]
[1736871016523,0.8147,3191.6,3190.8,6.36685877]
[1736871016723,0.8147,3191.6,3191.0,3.0]
[1736871017308,0.8147,3191.6,3190.9,0.29191983]
[1736871017505,0.55,3191.3,3190.9,0.29191983]
[1736871017703,0.55,3191.0,3190.9,0.29191983]
[1736871017955,4.4825873,3191.0,3190.9,0.29191983]
[1736871018168,4.93084603,3191.0,3190.9,0.29191983]
[1736871018453,4.4437,3190.7,3190.6,0.37314103]
[1736871019208,0.7596,3189.9,3189.6,0.60727136]
[1736871019828,0.7596,3189.9,3189.7,0.29191983]
[1736871020960,0.7596,3189.9,3189.8,0.29191983]
[1736871021524,0.7596,3189.9,3189.8,0.52616583]
[1736871022314,0.7596,3190.8,3189.8,0.52616583]
[1736871022508,0.94340523,3190.8,3189.9,0.29191983]
[1736871022724,0.7596,3190.7,3189.9,0.29191983]
[1736871023054,4.44439,3190.0,3189.9,0.29191983]
[1736871023450,0.7596,3190.0,3189.9,0.29191983]
[1736871023754,4.44439,3190.0,3189.9,0.29191983]
[1736871023914,4.89274815,3190.0,3189.9,0.29191983]
[1736871024612,1.75795815,3190.0,3189.9,0.29191983]
[1736871024764,1.3096,3190.0,3189.9,0.29191983]
[1736871024976,0.7596,3190.0,3189.9,0.29191983]
[1736871025156,3.8936,3190.9,3189.9,0.29191983]
[1736871025468,0.7596,3190.9,3189.9,0.29191983]
[1736871025771,0.7596,3190.9,3189.9,3.42675983]
[1736871025772,3.89352,3190.9,3189.9,3.42675983]
[1736871026071,3.13429,3190.6,3189.9,0.29191983]
[1736871026249,0.7596,3190.4,3190.0,0.23409908]
[1736871026630,0.55,3190.3,3190.1,0.29191983]
[1736871026835,0.58918374,3190.3,3190.1,0.29191983]
[1736871027056,0.7596,3190.4,3190.1,0.29191983]
[1736871027057,3.68459,3190.2,3190.1,0.29191983]
[1736871027266,0.994419,3190.2,3190.1,0.29191983]
[1736871027470,0.55,3190.2,3190.1,0.29191983]
[1736871027767,0.7596,3190.4,3188.9,4.41085033]
[1736871027934,0.7596,3190.4,3189.0,3.0]
[1736871028143,0.7596,3190.4,3189.7,3.135]
[1736871028368,0.7596,3190.4,3189.4,3.1353]
[1736871028557,0.7596,3190.4,3189.0,0.23408797]
[1736871028558,4.32267363,3190.4,3189.0,3.23408797]
[1736871028771,0.7596,3190.4,3189.2,0.55]
[1736871028940,0.7596,3190.4,3189.7,3.13503]
[1736871029145,0.7596,3190.4,3189.9,3.13488]
[1736871029348,0.7596,3190.4,3190.0,0.29261427]
[1736871030562,1.148988,3190.4,3190.0,0.29261427]
[1736871030780,3.94139,3190.2,3190.1,0.52670224]
[1736871031960,3.94139,3190.2,3190.1,0.29261427]
[1736871032204,4.49139,3190.2,3190.1,0.29261427]
[1736871032485,3.94257,3189.0,3188.9,0.23408797]
[1736871032845,3.99176901,3189.0,3188.9,0.23408797]
[1736871033454,3.99176901,3189.0,3187.9,0.23408797]
[1736871033455,0.8068,3188.9,3187.9,0.23408797]
[1736871033652,3.13627,3188.5,3187.9,0.23408797]
[1736871033950,0.04878957,3188.4,3187.9,0.23408797]
[1736871034150,3.13618,3188.6,3187.9,0.23408797]
[1736871034362,3.18483258,3188.5,3187.9,0.23408797]
[1736871034664,0.36704584,3188.5,3187.9,0.23408797]
[1736871034863,0.04856258,3188.5,3187.9,0.23408797]
[1736871035072,3.18491258,3188.5,3187.9,0.23408797]
[1736871035279,3.13635,3188.5,3188.0,0.23408797]
[1736871035485,0.04783462,3188.4,3188.0,0.23408797]
[1736871035884,0.8068,3188.3,3188.0,0.23408797]
[1736871036098,3.13666,3188.1,3188.0,0.23408797]
[1736871036401,3.13704,3187.8,3187.5,0.23408797]
[1736871036569,3.13715,3187.6,3187.5,0.23408797]
[1736871036895,3.94395,3187.6,3187.5,0.23408797]
[1736871037093,3.99070142,3187.6,3187.5,0.23408797]
[1736871038198,3.13741,3187.4,3186.4,3.1383]
[1736871038415,3.13747,3187.3,3186.3,3.61367567]
[1736871038611,3.13747,3187.3,3186.2,0.7517]
[1736871038612,0.0460579,3187.3,3186.2,0.7517]
[1736871038769,3.2227319,3187.3,3185.8,3.13888]
[1736871038969,0.8029,3187.1,3185.6,3.77694096]
[1736871039168,0.8029,3187.1,3185.5,0.8211]
[1736871039169,0.8029,3186.9,3185.5,0.8211]
[1736871039367,3.13873,3186.1,3185.9,0.23293579]
[1736871039659,0.04513918,3186.0,3185.9,0.23293579]
[1736871040215,0.8029,3186.2,3185.9,0.23293579]
[1736871040510,0.04420207,3186.0,3185.9,0.23293579]
[1736871040709,0.8029,3186.2,3185.3,3.13939]
[1736871040898,0.04430154,3186.0,3185.1,3.96063]
[1736871041098,0.04430154,3186.0,3185.1,0.8211]
[1736871041309,0.8029,3186.2,3185.3,3.1394]
[1736871041619,0.8029,3186.2,3185.1,3.8211]
[1736871041911,0.04433848,3186.1,3185.4,3.0]
[1736871042069,3.13864,3186.1,3185.1,3.9607]
[1736871042412,3.18291466,3186.0,3184.8,3.13983]
[1736871042614,3.18291466,3186.0,3184.9,3.13975]
[1736871042818,0.04418466,3186.0,3184.8,1.257504]
[1736871043109,3.94144,3186.2,3185.1,3.0]
[1736871043513,0.04390988,3186.1,3185.1,6.1396]
[1736871043712,3.58111487,3186.1,3185.1,6.1396]
[1736871043921,3.58111487,3186.1,3185.1,3.0]
[1736871044072,3.13876,3186.0,3185.1,3.0]
[1736871044612,0.04378075,3185.9,3185.1,3.0]
[1736871044822,0.04378075,3185.9,3185.1,3.1396]
[1736871045117,3.94143,3186.2,3185.1,3.1396]
[1736871045319,0.04372088,3185.8,3185.1,3.1396]
[1736871045493,4.335573,3186.2,3185.1,3.1396]
[1736871045693,0.04357157,3185.7,3185.1,3.1396]
[1736871045899,3.13866,3186.1,3185.1,3.1396]
[1736871046096,0.04351604,3185.6,3185.1,3.1396]
[1736871046423,0.04351604,3185.6,3185.0,3.0]
[1736871046720,0.04351604,3185.6,3185.1,3.13957]
[1736871046898,0.8029,3186.2,3185.3,3.13939]
[1736871047095,0.04338496,3185.5,3185.3,3.13939]
[1736871047295,0.8029,3186.2,3185.0,3.13964]
[1736871047496,3.13866,3186.1,3185.0,3.13964]
[1736871047740,0.04378221,3186.1,3185.2,3.0]
[1736871047891,0.04378221,3186.1,3185.0,3.55]
[1736871048091,0.7526,3186.7,3185.6,0.55]
[1736871048336,0.7526,3187.2,3186.2,0.7731]
[1736871048698,0.7526,3187.2,3186.3,3.13843]
[1736871048902,0.7526,3187.2,3186.3,3.13839]
[1736871049108,0.04143039,3187.1,3186.3,3.13843]
[1736871049413,0.7526,3187.2,3186.2,0.7731]
[1736871049636,0.7526,3186.9,3185.0,0.7731]
[1736871049934,0.7526,3186.2,3184.8,1.257504]
[1736871050232,0.7526,3186.2,3184.9,3.0]
[1736871050233,0.04122641,3186.1,3184.9,3.0]
[1736871050540,0.04122641,3186.1,3185.6,3.1391]
[1736871050687,0.04122641,3186.1,3184.8,1.257504]
[1736871050688,0.04122641,3186.1,3185.4,4.00193498]
[1736871050930,0.04122641,3186.1,3185.7,3.13893]
[1736871051107,0.7526,3186.6,3185.7,3.13893]
[1736871051328,0.7526,3186.6,3185.7,7.14091498]
[1736871051541,3.13677,3188.0,3185.7,7.14091498]
[1736871051542,0.04139722,3186.5,3186.1,3.0]
[1736871051837,3.89048,3186.9,3185.8,3.13884]
[1736871051983,3.89048,3186.9,3185.5,3.7731]
[1736871051984,3.13795,3186.8,3185.5,3.7731]
[1736871052185,3.17944426,3186.7,3185.8,3.0]
[1736871052433,3.57264869,3186.7,3185.8,3.0]
[1736871052788,0.04136426,3186.7,3186.0,3.13866]
[1736871052990,0.7526,3186.9,3185.8,3.0]
[1736871053341,0.7526,3186.9,3186.3,3.13841]
[1736871053513,0.7526,3186.9,3186.1,3.0]
[1736871053514,0.7526,3186.9,3186.1,6.13856]
[1736871053702,0.7526,3186.9,3186.2,3.13844]
[1736871053703,0.04135248,3186.8,3186.2,3.13844]
[1736871053907,0.7526,3186.9,3186.2,3.13844]
[1736871054103,0.04147619,3186.7,3186.2,3.13844]
[1736871054301,0.7526,3186.9,3186.1,3.0]
[1736871054518,3.13833,3186.5,3185.4,7.14120498]
[1736871054725,0.7526,3186.5,3185.0,4.00193498]
[1736871054908,0.04152733,3186.4,3185.9,3.13877]
[1736871055125,0.04152733,3186.4,3186.0,3.13865]
[1736871055431,0.7526,3186.8,3186.1,3.13862]
[1736871055740,0.04140068,3186.3,3186.2,3.13853]
[1736871055900,0.7526,3187.1,3186.1,4.00193498]
[1736871056100,0.7526,3187.1,3186.3,3.13835]
[1736871056325,0.0417691,3187.0,3186.3,3.13835]
[1736871056545,0.0417691,3187.0,3186.2,3.0]
[1736871056839,0.0417691,3187.0,3186.5,3.13823]
[1736871057607,0.0417691,3187.0,3186.6,3.0]
[1736871057809,0.0417691,3187.0,3186.9,10.13977498]
[1736871058042,0.7526,3187.9,3187.0,3.0]
[1736871058202,0.7526,3187.9,3187.1,3.13761]
[1736871058416,0.04074712,3187.8,3186.9,4.00193498]
[1736871058602,0.04074712,3187.8,3187.5,3.13724]
[1736871058906,0.04074712,3187.8,3187.0,0.7731]
[1736871058907,3.13685,3188.0,3187.0,3.0]
[1736871059107,0.7526,3188.2,3186.7,3.7731]
[1736871059350,0.04081242,3187.9,3187.2,3.0]
[1736871059495,0.7526,3188.2,3187.0,3.0]
[1736871059695,0.04082157,3187.8,3187.4,3.0]
[1736871059942,0.7526,3188.2,3187.5,0.7731]
[1736871060255,0.04122708,3188.1,3187.5,0.7731]
[1736871060543,0.04122708,3188.1,3187.1,4.17614139]
[1736871060837,0.801,3188.8,3187.9,3.13685]
[1736871061039,3.13607,3188.7,3187.7,3.13702]
[1736871061241,0.04041654,3188.7,3187.7,3.0]
[1736871061582,3.17651654,3188.7,3187.7,3.137]
[1736871061843,3.9373,3188.5,3187.8,0.29144484]
[1736871062017,0.801,3188.5,3187.8,0.29144484]
[1736871062344,0.04000682,3188.4,3187.8,0.52459151]
[1736871063245,0.04000682,3188.4,3187.9,0.23314667]
[1736871063246,3.17645682,3188.4,3187.9,0.23314667]
[1736871063479,0.07921812,3188.4,3187.9,0.23314667]
[1736871063599,3.93776,3188.0,3187.9,0.52459151]
[1736871063798,3.13745,3187.3,3186.3,3.13839]
[1736871064038,0.07888859,3187.2,3186.3,3.13835]
[1736871064245,0.03966677,3187.2,3186.0,3.1387]
[1736871064405,0.801,3187.1,3185.9,0.8019]
[1736871064612,0.801,3187.1,3185.7,5.5679896]
[1736871064613,0.07871247,3187.0,3185.7,4.69651878]
[1736871064840,0.801,3186.5,3185.7,7.83553878]
[1736871065043,0.801,3186.5,3185.7,0.15451057]
[1736871065196,0.03923922,3186.4,3185.8,3.0]
[1736871065403,3.13759,3187.2,3186.6,3.13813]
[1736871065404,0.801,3187.2,3186.6,3.13813]
[1736871065697,0.801,3187.2,3186.2,0.8019]
[1736871065698,0.03937086,3187.1,3186.2,0.8019]
[1736871065902,3.2162944,3187.1,3186.1,3.0]
[1736871066098,0.40172944,3187.0,3185.8,0.8019]
[1736871066330,0.03935205,3187.0,3185.9,3.13883]
[1736871066535,3.17717205,3187.0,3186.0,3.1387]
[1736871066713,0.801,3186.9,3186.1,3.13862]
[1736871066915,0.8402259,3186.9,3185.8,0.8019]